bitfinex/quotes_ETHUSD_20230105
["timestamp","ask_amount","ask_price","bid_price","bid_amount"]
[1672937203158,104.96182319,1249.7,1249.6,1.18729094]
[1672937204519,96.95990319,1249.7,1249.6,1.18729094]
[1672937206410,117.15978331,1249.7,1249.6,1.18729094]
[1672937206564,109.36515277,1249.7,1249.6,1.18729094]
[1672937206768,112.96255766,1249.7,1249.6,1.18729094]
[1672937207041,104.96063766,1249.7,1249.6,1.18729094]
[1672937207665,88.95679766,1249.7,1249.6,1.18729094]
[1672937208086,93.95679766,1249.7,1249.6,1.18729094]
[1672937208945,93.95879766,1249.7,1249.6,1.18729094]
[1672937209094,93.95679766,1249.7,1249.6,1.18729094]
[1672937209538,93.95679766,1249.7,1249.6,9.18985094]
[1672937209751,93.95679766,1249.7,1249.6,9.25343478]
[1672937210097,88.95679766,1249.7,1249.6,9.25343478]
[1672937211531,88.95679766,1249.7,1249.6,1.25087478]
[1672937211821,88.95679766,1249.7,1249.6,1.18729094]
[1672937212555,101.95871766,1249.7,1249.6,1.18729094]
[1672937213299,93.95679766,1249.7,1249.6,1.18729094]
[1672937213713,109.96063766,1249.7,1249.6,1.18729094]
[1672937213970,101.95871766,1249.7,1249.6,1.18729094]
[1672937214141,93.95679766,1249.7,1249.6,1.18729094]
[1672937214353,93.95679766,1249.7,1249.6,9.18985094]
[1672937214674,90.35939277,1249.7,1249.6,1.25087478]
[1672937214888,90.35939277,1249.7,1249.6,1.18729094]
[1672937215301,93.95679766,1249.7,1249.6,1.18729094]
[1672937215982,101.95871766,1249.7,1249.6,1.18729094]
[1672937216149,98.36131277,1249.7,1249.6,1.18729094]
[1672937216500,93.95679766,1249.7,1249.6,1.18729094]
[1672937216658,90.35939277,1249.7,1249.6,1.18729094]
[1672937217082,93.95679766,1249.7,1249.6,1.18729094]
[1672937217294,90.35939277,1249.7,1249.6,9.18985094]
[1672937217536,90.35939277,1249.7,1249.6,9.25343478]
[1672937217749,90.35939277,1249.7,1249.6,1.25087478]
[1672937218106,91.29511709,1249.7,1249.6,1.18729094]
[1672937219181,94.2903997,1249.7,1249.6,17.19241094]
[1672937219392,94.2903997,1249.7,1249.6,17.25599478]
[1672937219659,88.6897997,1249.7,1249.6,17.25599478]
[1672937221392,88.6897997,1249.7,1249.6,25.25855478]
[1672937221764,88.09067464,1249.7,1249.6,25.25855478]
[1672937222752,88.09067464,1249.7,1249.6,25.25515301]
[1672937224158,91.08595725,1249.7,1249.6,25.25515301]
[1672937224769,88.09067464,1249.7,1249.6,25.25515301]
[1672937224965,88.09067464,1249.7,1249.6,33.25771301]
[1672937227959,85.69451709,1249.7,1249.6,35.1150239]
[1672937228113,85.69451709,1249.7,1249.6,38.1150239]
[1672937230948,85.69451709,1249.7,1249.6,36.93113473]
[1672937236158,85.69451709,1249.7,1249.6,28.92857473]
[1672937237031,88.09067464,1249.7,1249.6,28.92857473]
[1672937237191,88.09067464,1249.7,1249.6,27.51074691]
[1672937238270,85.69451709,1249.7,1249.6,27.51074691]
[1672937238833,88.09067464,1249.7,1249.6,27.51074691]
[1672937241271,85.69451709,1249.7,1249.6,27.51074691]
[1672937244040,88.09067464,1249.7,1249.6,27.51074691]
[1672937244253,88.09067464,1249.7,1249.6,31.0621356]
[1672937244657,85.69451709,1249.7,1249.6,31.0621356]
[1672937245564,85.69451709,1249.7,1249.6,31.06003417]
[1672937248170,88.09067464,1249.7,1249.6,31.06003417]
[1672937248377,88.09067464,1249.7,1249.6,27.50864548]
[1672937251180,88.09267464,1249.7,1249.6,27.50664548]
[1672937251393,88.09067464,1249.7,1249.6,27.50864548]
[1672937254435,91.08595725,1249.7,1249.6,27.50864548]
[1672937254705,87.99067464,1249.7,1249.6,27.50864548]
[1672937255650,90.98595725,1249.7,1249.6,27.50864548]
[1672937255839,104.5936397,1249.7,1249.6,3.50306691]
[1672937256027,104.5936397,1249.7,1249.6,0.43948307]
[1672937256028,96.5937197,1249.7,1249.6,0.43948307]
[1672937256256,93.59643709,1249.7,1249.5,3.0]
[1672937256470,5.39990255,1249.6,1249.5,3.0]
[1672937256696,2.46395669,1249.6,1249.5,3.0]
[1672937256910,2.39995669,1249.6,1249.5,3.0]
[1672937257078,2.39995669,1249.6,1249.5,11.0032]
[1672937257270,2.39995669,1249.6,1249.5,11.06678384]
[1672937257480,2.39995669,1249.6,1249.5,19.06998384]
[1672937257690,2.39995669,1249.6,1249.5,11.06678384]
[1672937258112,5.39990255,1249.6,1249.5,19.06998384]
[1672937258345,5.39990255,1249.6,1249.5,27.07318384]
[1672937258346,5.46390255,1249.6,1249.5,27.07318384]
[1672937258688,5.46390255,1249.6,1249.5,11.06678384]
[1672937258913,5.46390255,1249.6,1249.5,27.07318384]
[1672937259267,5.46390255,1249.6,1249.5,11.06678384]
[1672937260438,5.46390255,1249.6,1249.5,27.07318384]
[1672937260633,5.46390255,1249.6,1249.5,11.06678384]
[1672937260837,5.46390255,1249.6,1249.5,27.07318384]
[1672937262341,2.46395669,1249.6,1249.5,27.07318384]
[1672937262547,2.39995669,1249.6,1249.5,32.51648762]
[1672937264567,2.39995669,1249.6,1249.4,42.04828307]
[1672937264568,52.07830515,1249.5,1249.4,42.04828307]
[1672937264768,52.14430515,1249.5,1249.4,56.09424869]
[1672937264981,52.14430515,1249.5,1249.4,64.0684124]
[1672937265190,52.14430515,1249.5,1249.4,62.08143629]
[1672937266230,52.14430515,1249.5,1249.4,73.08527629]
[1672937268134,52.14430515,1249.5,1249.4,73.11022629]
[1672937270641,52.14430515,1249.5,1249.4,65.10638629]
[1672937271647,52.14430515,1249.5,1249.4,65.08143629]
[1672937272395,52.14430515,1249.5,1249.4,73.08527629]
[1672937272692,52.14430515,1249.5,1249.4,75.07224915]
[1672937275393,52.14430515,1249.5,1249.4,78.05268935]
[1672937275605,52.14430515,1249.5,1249.4,75.07224915]
[1672937275957,52.14430515,1249.5,1249.4,78.05266142]
[1672937276168,50.95217123,1249.5,1249.4,78.05266142]
[1672937277859,50.95217123,1249.5,1249.4,78.05269981]
[1672937278070,50.95217123,1249.5,1249.4,75.07224915]
[1672937278967,50.95217123,1249.5,1249.4,65.08143629]
[1672937279189,50.95217123,1249.5,1249.4,73.08527629]
[1672937279796,50.95217123,1249.5,1249.4,65.08143629]
[1672937280008,50.95217123,1249.5,1249.4,73.08527629]
[1672937280233,50.95217123,1249.5,1249.4,75.07225666]
[1672937281503,50.95217123,1249.5,1249.4,78.05269703]
[1672937282668,50.95217123,1249.5,1249.4,70.04885703]
[1672937283184,50.95217123,1249.5,1249.4,75.07225666]
[1672937283500,50.95217123,1249.5,1249.4,67.06841666]
[1672937285647,50.95217123,1249.5,1249.4,39.11812307]
[1672937286497,50.95217123,1249.5,1249.4,49.1089751]
[1672937286702,50.95217123,1249.5,1249.4,52.08942617]
[1672937287378,50.95217123,1249.5,1249.4,49.1089751]
[1672937288590,50.95217123,1249.5,1249.4,52.08943064]
[1672937288800,50.95217123,1249.5,1249.4,49.1089751]
[1672937289068,50.95217123,1249.5,1249.4,44.08562535]
[1672937289228,50.95217123,1249.5,1249.4,49.1089751]
[1672937291801,50.95217123,1249.5,1249.4,52.08944487]
[1672937292173,50.95217123,1249.5,1249.4,52.0894449]
[1672937294315,50.95217123,1249.5,1249.4,44.0856049]
[1672937295420,50.95217123,1249.5,1249.4,41.1051351]
[1672937298332,53.35212792,1249.5,1249.4,39.11812307]
[1672937299347,53.35212792,1249.5,1249.4,39.11570538]
[1672937300448,50.95217123,1249.5,1249.4,39.11570538]
[1672937300665,53.35212792,1249.5,1249.4,39.11570538]
[1672937301269,50.95217123,1249.5,1249.4,41.10270877]
[1672937305349,50.95217123,1249.5,1249.4,41.10274575]
[1672937307087,50.95217123,1249.5,1249.4,44.0832174]
[1672937308121,50.95217123,1249.5,1249.4,44.08322874]
[1672937308990,50.95217123,1249.5,1249.4,44.08322825]
[1672937309395,50.95217123,1249.5,1249.4,41.10274575]
[1672937311994,50.95217123,1249.5,1249.4,29.50356344]
[1672937312214,53.35212792,1249.5,1249.4,27.51652307]
[1672937312927,53.35212792,1249.5,1249.4,11.50884307]
[1672937313507,53.35212792,1249.5,1249.4,27.51652307]
[1672937314037,50.95217123,1249.5,1249.4,27.51652307]
[1672937316152,50.95217123,1249.5,1249.4,32.48403012]
[1672937317596,50.95217123,1249.5,1249.4,29.50353611]
[1672937318014,50.95217123,1249.5,1249.4,32.48403398]
[1672937318557,50.95217123,1249.5,1249.4,29.50353611]
[1672937318715,50.95217123,1249.5,1249.4,32.48403376]
[1672937321451,50.95217123,1249.5,1249.4,29.50353611]
[1672937321710,56.35207378,1249.5,1249.4,19.51055109]
[1672937321913,56.35207378,1249.5,1249.4,11.50671109]
[1672937322245,56.35207378,1249.5,1249.4,11.50719109]
[1672937322460,56.30207378,1249.5,1249.4,11.50719109]
[1672937322851,56.30207378,1249.5,1249.4,27.51487109]
[1672937322852,53.30212792,1249.5,1249.4,27.51487109]
[1672937323404,53.30212792,1249.5,1249.4,19.51103109]
[1672937323618,56.30207378,1249.5,1249.4,19.51103109]
[1672937323787,53.30212792,1249.5,1249.4,19.51103109]
[1672937324209,50.90217123,1249.5,1249.4,27.51487109]
[1672937324567,53.30212792,1249.5,1249.4,27.51487109]
[1672937324965,50.90217123,1249.5,1249.4,27.51487109]
[1672937325564,50.90217123,1249.5,1249.4,29.50188891]
[1672937325985,50.88085854,1249.5,1249.4,29.50188891]
[1672937326653,50.88085854,1249.5,1249.4,27.51487109]
[1672937327025,50.88085854,1249.5,1249.4,29.50188463]
[1672937327238,50.88085854,1249.5,1249.4,27.51487109]
[1672937328460,50.88085854,1249.5,1249.4,19.51103109]
[1672937329607,50.88085854,1249.5,1249.4,27.51487109]
[1672937329761,53.28081523,1249.5,1249.4,27.51487109]
[1672937331147,53.28081523,1249.5,1249.4,19.51103109]
[1672937332492,53.23081523,1249.5,1249.4,19.51103109]
[1672937333166,53.23081523,1249.5,1249.4,19.50903109]
[1672937333436,53.23081523,1249.5,1249.4,19.51103109]
[1672937334137,53.23081523,1249.5,1249.4,27.51487109]
[1672937334286,53.23081523,1249.5,1249.4,19.51103109]
[1672937334496,53.23081523,1249.5,1249.4,27.51487109]
[1672937335749,53.23081523,1249.5,1249.4,35.51871109]
[1672937336211,50.83085854,1249.5,1249.4,37.50572114]
[1672937336415,50.83085854,1249.5,1249.4,40.48623618]
[1672937337284,50.83085854,1249.5,1249.4,37.50572114]
[1672937337649,50.83085854,1249.5,1249.4,29.50188114]
[1672937338366,50.83085854,1249.5,1249.4,27.51487109]
[1672937338558,50.83085854,1249.5,1249.4,29.5018992]
[1672937338785,50.83085854,1249.5,1249.4,27.51487109]
[1672937339155,54.83085854,1249.5,1249.4,27.51487109]
[1672937339526,57.23081523,1249.5,1249.4,27.51487109]
[1672937339680,54.83085854,1249.5,1249.4,27.51487109]
[1672937339896,57.23081523,1249.5,1249.4,27.51487109]
[1672937340469,54.83085854,1249.5,1249.4,27.51487109]
[1672937343986,54.83085854,1249.5,1249.4,27.07752]
[1672937344202,54.83085854,1249.5,1249.4,27.51700307]
[1672937345300,57.23081523,1249.5,1249.4,27.51700307]
[1672937347725,57.23081523,1249.5,1249.4,27.51700307]
[1672937347946,63.91394051,1249.5,1249.4,0.066]
[1672937348253,81.11849954,1249.5,1249.3,0.066]
[1672937348400,9.91344548,1249.4,1249.1,41.55999971]
[1672937348612,2.40138182,1249.3,1249.1,49.56575971]
[1672937348823,16.18915245,1249.4,1249.1,16.14458507]
[1672937349598,16.18915245,1249.4,1249.2,3.0]
[1672937349762,16.18915245,1249.4,1249.2,11.00503]
[1672937349763,12.68915245,1249.4,1249.2,11.00503]
[1672937349972,12.68915245,1249.4,1249.2,11.07103]
[1672937350248,12.68915245,1249.4,1249.2,19.07615]
[1672937350566,12.68915245,1249.4,1249.2,19.07415]
[1672937350767,12.68915245,1249.4,1249.2,19.07615]
[1672937350987,9.68740697,1249.4,1249.2,19.07615]
[1672937354450,6.87640697,1249.4,1249.2,19.07306396]
[1672937354767,0.6667,1249.4,1249.2,27.07818396]
[1672937354922,3.00208182,1249.4,1249.2,27.07818396]
[1672937355126,0.6007,1249.4,1249.2,27.07818396]
[1672937355340,65.47794036,1249.5,1249.2,35.08330396]
[1672937355544,65.47794036,1249.5,1249.2,38.71822871]
[1672937356640,68.47968584,1249.5,1249.2,27.07818396]
[1672937357030,76.48291584,1249.5,1249.2,27.07818396]
[1672937358302,2.40138182,1249.4,1249.2,3.06291396]
[1672937358512,18.40988182,1249.4,1249.1,11.24765507]
[1672937358726,26.48017182,1249.4,1249.1,15.23680458]
[1672937358935,34.45433553,1249.4,1249.1,15.23680458]
[1672937360072,26.44996553,1249.4,1249.1,3.24236507]
[1672937360336,34.45417553,1249.4,1249.1,3.17636507]
[1672937360564,34.45417553,1249.4,1249.1,15.09596507]
[1672937360698,37.45592101,1249.4,1249.1,15.16196507]
[1672937361138,2.40138182,1249.3,1249.1,23.16723507]
[1672937361494,2.40138182,1249.3,1249.1,0.13346507]
[1672937361495,5.21238182,1249.2,1249.1,0.13346507]
[1672937361648,33.39454182,1249.2,1249.1,0.06746507]
[1672937362298,41.08204182,1249.2,1249.1,0.06746507]
[1672937362532,46.83260531,1249.2,1249.1,0.06746507]
[1672937362700,38.82748531,1249.2,1249.1,0.06746507]
[1672937363340,36.42610349,1249.2,1249.1,0.06746507]
[1672937363787,44.43122349,1249.2,1249.1,0.06746507]
[1672937363970,16.91586349,1249.2,1249.1,0.06746507]
[1672937364436,19.31724531,1249.2,1249.1,0.06746507]
[1672937364595,16.91586349,1249.2,1249.1,0.06746507]
[1672937365145,11.1653,1249.2,1249.1,0.06746507]
[1672937365591,11.1653,1249.2,1249.1,8.07322507]
[1672937365745,11.1653,1249.2,1249.1,8.13922507]
[1672937365950,11.1653,1249.2,1249.1,0.13146507]
[1672937366180,3.4778,1249.2,1249.1,0.06746507]
[1672937366391,7.24303449,1249.2,1249.1,0.06746507]
[1672937366594,7.30903449,1249.2,1249.1,0.06746507]
[1672937367672,7.30903449,1249.2,1249.1,8.07322507]
[1672937367878,7.30903449,1249.2,1249.1,8.13922507]
[1672937368536,15.31415449,1249.2,1249.1,0.13346507]
[1672937368692,7.30903449,1249.2,1249.1,0.06746507]
[1672937369534,7.30903449,1249.2,1249.1,8.07322507]
[1672937369740,7.30903449,1249.2,1249.1,8.13922507]
[1672937370898,8.53253299,1249.2,1249.1,0.13346507]
[1672937371103,16.53765299,1249.2,1249.1,0.06746507]
[1672937371308,8.53253299,1249.2,1249.1,0.06746507]
[1672937371786,16.53765299,1249.2,1249.1,0.06746507]
[1672937372000,8.53253299,1249.2,1249.1,0.06746507]
[1672937372206,8.53253299,1249.2,1249.1,8.07322507]
[1672937372422,8.53253299,1249.2,1249.1,8.13922507]
[1672937373415,1.8902985,1249.2,1249.1,8.13922507]
[1672937373630,1.2234985,1249.2,1249.1,32.59575223]
[1672937374044,1.2234985,1249.2,1249.1,35.59575223]
[1672937378893,1.2234985,1249.2,1249.1,35.59322236]
[1672937379568,1.2234985,1249.2,1249.1,39.15873379]
[1672937380925,13.33848182,1249.4,1249.1,39.15873379]
[1672937381139,10.47948182,1249.4,1249.3,24.01344]
[1672937381331,2.46738182,1249.4,1249.3,24.07944]
[1672937381537,2.40138182,1249.4,1249.3,24.07944]
[1672937381748,63.68668584,1249.5,1249.3,24.07944]
[1672937382108,68.80884955,1249.5,1249.3,24.07944]
[1672937382422,65.80710407,1249.5,1249.3,24.07944]
[1672937384496,68.80884955,1249.5,1249.3,24.07944]
[1672937385664,2.40138182,1249.4,1249.3,24.07944]
[1672937385882,2.40138182,1249.4,1249.3,16.07496]
[1672937385883,5.21238182,1249.4,1249.3,16.07496]
[1672937386060,5.27838182,1249.4,1249.3,16.07496]
[1672937386278,7.19567937,1249.4,1249.3,16.07496]
[1672937387346,10.19742485,1249.4,1249.3,8.07048]
[1672937387818,10.19742485,1249.4,1249.3,0.066]
[1672937387984,10.19742485,1249.4,1249.2,27.08055]
[1672937389488,18.20133485,1249.4,1249.2,11.07073]
[1672937389700,10.19742485,1249.4,1249.2,19.07585]
[1672937390221,10.19742485,1249.4,1249.2,27.08097]
[1672937391022,8.2801273,1249.4,1249.2,27.08097]
[1672937392800,8.2764967,1249.4,1249.2,27.08097]
[1672937393250,11.7764967,1249.4,1249.2,27.08097]
[1672937393800,8.2764967,1249.4,1249.2,27.08097]
[1672937395231,16.2803567,1249.4,1249.2,11.07073]
[1672937395438,13.88260548,1249.4,1249.2,11.07073]
[1672937395636,5.87874548,1249.4,1249.2,19.07585]
[1672937396048,0.066,1249.4,1249.2,27.08097]
[1672937396267,58.43330402,1249.5,1249.2,39.79803524]
[1672937396472,58.48330402,1249.5,1249.2,39.79803524]
[1672937396740,58.43330402,1249.5,1249.2,39.79803524]
[1672937397350,58.43330402,1249.5,1249.2,35.08609]
[1672937400304,66.43653402,1249.5,1249.2,27.08097]
[1672937400493,74.43976402,1249.5,1249.2,19.07585]
[1672937400707,82.44299402,1249.5,1249.2,11.07073]
[1672937400940,5.89608654,1249.4,1249.2,11.07073]
[1672937401091,13.96596654,1249.4,1249.2,11.07073]
[1672937401454,2.46208654,1249.4,1249.2,27.08097]
[1672937401662,2.39608654,1249.4,1249.2,19.07585]
[1672937402063,2.39608654,1249.4,1249.2,27.08097]
[1672937402778,2.39608654,1249.3,1249.2,3.066]
[1672937402987,2.39608654,1249.3,1249.2,3.0]
[1672937403197,18.40504654,1249.3,1249.2,3.0]
[1672937403457,2.46208654,1249.3,1249.2,3.0]
[1672937403601,2.39608654,1249.3,1249.2,27.01536]
[1672937403810,2.39608654,1249.3,1249.2,27.08136]
[1672937404053,2.39608654,1249.3,1249.2,19.07624]
[1672937404448,2.39608654,1249.3,1249.2,11.07112]
[1672937404815,2.39608654,1249.3,1249.2,3.066]
[1672937405025,2.39608654,1249.3,1249.2,11.00512]
[1672937405235,2.39608654,1249.3,1249.2,11.07112]
[1672937406123,2.39608654,1249.3,1249.2,19.07624]
[1672937406452,2.39608654,1249.3,1249.2,27.08136]
[1672937408117,5.46383202,1249.4,1249.2,27.08136]
[1672937408505,2.39608654,1249.3,1249.2,27.08136]
[1672937414826,5.39783202,1249.3,1249.2,27.08136]
[1672937415138,5.46383202,1249.3,1249.2,27.08136]
[1672937416085,2.46208654,1249.3,1249.2,27.08136]
[1672937416397,2.39608654,1249.3,1249.2,27.08136]
[1672937417216,5.39783202,1249.3,1249.2,27.08136]
[1672937417430,5.46383202,1249.3,1249.2,27.07914459]
[1672937423511,2.46208654,1249.3,1249.2,27.07914459]
[1672937423859,2.39608654,1249.3,1249.2,27.07914459]
[1672937425330,5.39783202,1249.3,1249.2,27.07914459]
[1672937425522,5.46383202,1249.3,1249.2,27.07914459]
[1672937426074,2.46208654,1249.3,1249.2,27.07914459]
[1672937426218,2.39608654,1249.3,1249.2,27.07914459]
[1672937426428,5.39783202,1249.3,1249.2,27.07914459]
[1672937426638,2.46208654,1249.3,1249.2,27.07914459]
[1672937426848,2.39608654,1249.3,1249.2,27.07914459]
[1672937430349,5.39783202,1249.3,1249.2,27.07914459]
[1672937430604,5.46383202,1249.3,1249.2,27.07914459]
[1672937431160,2.46208654,1249.3,1249.2,27.07914459]
[1672937431411,2.39608654,1249.3,1249.2,27.07914459]
[1672937435472,5.39983202,1249.3,1249.2,27.07714459]
[1672937435680,5.46383202,1249.3,1249.2,27.07914459]
[1672937438147,3.06774548,1249.3,1249.2,11.06890459]
[1672937438363,3.90986917,1249.3,1249.2,11.06690459]
[1672937438551,54.67272771,1249.3,1249.2,11.06890459]
[1672937438884,54.73872771,1249.3,1249.2,3.06378459]
[1672937439100,54.73872771,1249.3,1249.2,2.99778459]
[1672937439250,54.73872771,1249.3,1249.2,2.99537798]
[1672937441381,51.73698223,1249.3,1249.2,2.99537798]
[1672937441792,59.32353663,1249.3,1249.2,2.99537798]
[1672937442019,80.34037174,1249.3,1249.1,0.1309352]
[1672937442232,3.59902549,1249.2,1249.1,0.0649352]
[1672937442404,12.1739892,1249.2,1249.1,0.0649352]
[1672937442614,15.7399892,1249.2,1249.1,8.0706952]
[1672937442865,12.14096371,1249.2,1249.1,0.1309352]
[1672937443197,11.63734875,1249.2,1249.1,0.0649352]
[1672937443408,8.64096371,1249.2,1249.1,0.0649352]
[1672937443768,11.63684356,1249.2,1249.1,0.0649352]
[1672937444463,11.03604356,1249.2,1249.1,0.0649352]
[1672937444799,16.03604356,1249.2,1249.1,0.0649352]
[1672937445827,16.03604356,1249.2,1249.1,8.0706952]
[1672937446040,16.03604356,1249.2,1249.1,8.1366952]
[1672937446428,16.03281964,1249.2,1249.1,8.1366952]
[1672937446815,16.03281964,1249.2,1249.1,16.1424552]
[1672937446949,18.42811661,1249.2,1249.1,8.1366952]
[1672937447160,18.42811661,1249.2,1249.1,16.1424552]
[1672937447394,16.03281964,1249.2,1249.1,16.1424552]
[1672937447621,16.03281964,1249.2,1249.1,8.1366952]
[1672937448266,18.42740008,1249.2,1249.1,8.1366952]
[1672937448498,18.42740008,1249.2,1249.1,16.1424552]
[1672937448856,18.42740008,1249.2,1249.1,8.1366952]
[1672937450225,18.42740008,1249.2,1249.1,16.1424552]
[1672937450783,13.42740008,1249.2,1249.1,8.1366952]
[1672937451001,42.62816334,1249.1,1249.0,16.07381193]
[1672937451190,42.69416334,1249.1,1249.0,24.14621193]
[1672937461357,45.08874378,1249.1,1249.0,24.14621193]
[1672937461568,42.69416334,1249.1,1249.0,24.14621193]
[1672937464147,45.08874378,1249.1,1249.0,24.14621193]
[1672937465644,42.69416334,1249.1,1249.0,24.14621193]
[1672937465820,45.08874378,1249.1,1249.0,24.14621193]
[1672937468063,42.69416334,1249.1,1249.0,24.14621193]
[1672937468236,45.08874378,1249.1,1249.0,24.14621193]
[1672937472188,42.69416334,1249.1,1249.0,24.14621193]
[1672937472360,42.69416334,1249.1,1249.0,24.14348883]
[1672937472361,45.08874378,1249.1,1249.0,24.14348883]
[1672937475823,45.08874378,1249.1,1249.0,8.13106883]
[1672937476033,51.10165119,1249.1,1249.0,0.12516883]
[1672937476241,59.10741119,1249.1,1249.0,0.05916883]
[1672937477502,47.5026257,1249.1,1249.0,0.05916883]
[1672937477753,56.10165119,1249.1,1249.0,0.05916883]
[1672937478901,64.10741119,1249.1,1249.0,0.05916883]
[1672937479118,72.11317119,1249.1,1249.0,0.05916883]
[1672937479291,80.11893119,1249.1,1249.0,0.05916883]
[1672937480954,72.11317119,1249.1,1249.0,0.05916883]
[1672937481164,64.10741119,1249.1,1249.0,0.05916883]
[1672937482467,60.5083857,1249.1,1249.0,0.05916883]
[1672937484116,64.10741119,1249.1,1249.0,0.05916883]
[1672937485265,68.5141457,1249.1,1249.0,0.05916883]
[1672937485617,80.11893119,1249.1,1249.0,0.05916883]
[1672937486739,72.11317119,1249.1,1249.0,0.05916883]
[1672937487162,80.11893119,1249.1,1249.0,0.05916883]
[1672937487412,76.5199057,1249.1,1249.0,0.05916883]
[1672937487999,64.10741119,1249.1,1249.0,0.05916883]
[1672937488213,47.5026257,1249.1,1249.0,0.05916883]
[1672937488669,55.5083857,1249.1,1249.0,0.05916883]
[1672937489235,60.5083857,1249.1,1249.0,0.05916883]
[1672937489588,63.50477187,1249.1,1249.0,0.05916883]
[1672937489833,60.5083857,1249.1,1249.0,0.05916883]
[1672937490053,63.50476552,1249.1,1249.0,0.05916883]
[1672937491519,60.5083857,1249.1,1249.0,0.05916883]
[1672937491733,76.5199057,1249.1,1249.0,0.05916883]
[1672937492131,60.5083857,1249.1,1249.0,0.05916883]
[1672937492456,52.5026257,1249.1,1249.0,0.05916883]
[1672937492635,60.5083857,1249.1,1249.0,0.05916883]
[1672937493264,52.5026257,1249.1,1249.0,0.05916883]
[1672937494683,55.49857322,1249.1,1249.0,0.05916883]
[1672937495214,58.50433322,1249.1,1249.0,0.05916883]
[1672937495593,58.50433322,1249.1,1249.0,0.05642466]
[1672937496000,60.01701915,1249.1,1249.0,0.05642466]
[1672937496236,65.01701915,1249.1,1249.0,0.05642466]
[1672937498515,62.02107163,1249.1,1249.0,0.05642466]
[1672937498726,70.02683163,1249.1,1249.0,0.05642466]
[1672937498982,57.61433712,1249.1,1249.0,0.05642466]
[1672937499215,57.66433712,1249.1,1249.0,0.05642466]
[1672937499390,57.61433712,1249.1,1249.0,0.05642466]
[1672937502252,52.61433712,1249.1,1249.0,0.05642466]
[1672937503254,57.66433712,1249.1,1249.0,0.05642466]
[1672937503619,57.61433712,1249.1,1249.0,0.05642466]
[1672937503983,54.01531163,1249.1,1249.0,0.05642466]
[1672937504512,57.61433712,1249.1,1249.0,0.05642466]
[1672937504986,54.01531163,1249.1,1249.0,0.05642466]
[1672937505878,49.20684927,1249.1,1249.0,8.06282466]
[1672937506092,52.20373885,1249.1,1249.0,24.14162466]
[1672937507708,47.20373885,1249.1,1249.0,24.14162466]
[1672937510501,47.20115173,1249.1,1249.0,24.14162466]
[1672937513576,44.20426215,1249.1,1249.0,24.14162466]
[1672937514196,47.20221697,1249.1,1249.0,24.14162466]
[1672937515617,44.20426215,1249.1,1249.0,24.14162466]
[1672937516774,47.20276614,1249.1,1249.0,24.14162466]
[1672937517150,44.20426215,1249.1,1249.0,24.14162466]
[1672937517559,47.20276488,1249.1,1249.0,24.14162466]
[1672937517786,44.20426215,1249.1,1249.0,24.14162466]
[1672937518038,44.20426215,1249.1,1249.0,8.12882466]
[1672937518039,47.80328764,1249.1,1249.0,8.12882466]
[1672937518245,47.80328764,1249.1,1249.0,0.12242466]
[1672937518483,55.80904764,1249.1,1249.0,0.05642466]
[1672937518989,47.80328764,1249.1,1249.0,0.05642466]
[1672937519562,52.80328764,1249.1,1249.0,0.05642466]
[1672937519822,60.77745135,1249.1,1249.0,0.05642466]
[1672937520182,68.78321135,1249.1,1249.0,0.05642466]
[1672937520387,60.77745135,1249.1,1249.0,0.05642466]
[1672937520846,68.78321135,1249.1,1249.0,0.05642466]
[1672937521025,52.80328764,1249.1,1249.0,0.05642466]
[1672937521255,52.80328764,1249.1,1249.0,8.06282466]
[1672937521587,52.80328764,1249.1,1249.0,8.12882466]
[1672937522741,52.80328764,1249.1,1249.0,0.12242466]
[1672937522979,60.77745135,1249.1,1249.0,0.05642466]
[1672937525388,52.80328764,1249.1,1249.0,0.05642466]
[1672937525538,47.80328764,1249.1,1249.0,0.05642466]
[1672937525748,47.80328764,1249.1,1249.0,8.06282466]
[1672937526006,47.80328764,1249.1,1249.0,16.13522466]
[1672937526432,47.80328764,1249.1,1249.0,24.14162466]
[1672937526636,52.80328764,1249.1,1249.0,24.14162466]
[1672937527852,47.80328764,1249.1,1249.0,24.14162466]
[1672937528854,47.80328764,1249.1,1249.0,16.13522466]
[1672937529922,44.20426215,1249.1,1249.0,16.13522466]
[1672937530067,47.80328764,1249.1,1249.0,16.13522466]
[1672937530789,44.20426215,1249.1,1249.0,24.14162466]
[1672937531004,47.80328764,1249.1,1249.0,24.14162466]
[1672937532117,47.85328764,1249.1,1249.0,24.14162466]
[1672937532432,44.20426215,1249.1,1249.0,24.14162466]
[1672937533668,47.20245672,1249.1,1249.0,24.14162466]
[1672937534004,49.60108629,1249.1,1249.0,32.14423049]
[1672937534431,49.60108629,1249.1,1249.0,36.55181273]
[1672937534946,47.20245672,1249.1,1249.0,36.55181273]
[1672937535479,49.60062776,1249.1,1249.0,36.55181273]
[1672937535635,49.60062776,1249.1,1249.0,32.14423049]
[1672937538150,49.65062776,1249.1,1249.0,24.13783049]
[1672937538381,49.60062776,1249.1,1249.0,24.13783049]
[1672937544277,47.20245672,1249.1,1249.0,24.13783049]
[1672937544486,47.20245672,1249.1,1249.0,32.14423049]
[1672937544695,49.59962414,1249.1,1249.0,32.14423049]
[1672937544949,49.59962414,1249.1,1249.0,24.13783049]
[1672937551802,46.60142957,1249.1,1249.0,32.14423049]
[1672937553385,46.60142957,1249.1,1249.0,37.35250773]
[1672937553539,46.60142957,1249.1,1249.0,40.35250773]
[1672937554844,46.60142957,1249.1,1249.0,32.34610773]
[1672937556068,46.60142957,1249.1,1249.0,40.35250773]
[1672937556263,46.60142957,1249.1,1249.0,40.3499391]
[1672937557350,46.60142957,1249.1,1249.0,32.3435391]
[1672937559084,46.60142957,1249.1,1249.0,40.3499391]
[1672937559656,46.60142957,1249.1,1249.0,40.3479391]
[1672937559934,46.60142957,1249.1,1249.0,40.3499391]
[1672937562317,44.20426215,1249.1,1249.0,40.3499391]
[1672937565313,46.60142957,1249.1,1249.0,40.3499391]
[1672937567046,46.60142957,1249.1,1249.0,32.3435391]
[1672937567686,46.60142957,1249.1,1249.0,40.3499391]
[1672937568936,46.60142957,1249.1,1249.0,32.3435391]
[1672937570042,46.60142957,1249.1,1249.0,40.3499391]
[1672937570400,46.60142957,1249.1,1249.0,32.3435391]
[1672937570925,46.59878828,1249.1,1249.0,32.3435391]
[1672937572451,49.59698285,1249.1,1249.0,32.3435391]
[1672937573611,47.19981543,1249.1,1249.0,3.11606186]
[1672937573781,47.19981543,1249.1,1249.0,3.05006186]
[1672937574136,47.80064635,1249.1,1249.0,3.05006186]
[1672937574347,44.20162086,1249.1,1249.0,3.05006186]
[1672937574560,52.84089064,1249.1,1249.0,11.05646186]
[1672937574717,49.8422875,1249.1,1249.0,11.12246186]
[1672937574921,52.84083262,1249.1,1249.0,11.12246186]
[1672937575135,49.8422875,1249.1,1249.0,11.12246186]
[1672937575363,52.84085955,1249.1,1249.0,11.12246186]
[1672937576175,52.84061337,1249.1,1249.0,3.11606186]
[1672937576347,57.8480475,1249.1,1249.0,3.05006186]
[1672937576515,53.44131299,1249.1,1249.0,0.05006186]